bitfinex-derivatives/quotes_SOLF0:USTF0_20250609
["timestamp","ask_amount","ask_price","bid_price","bid_amount"]
[1749465626306,6.455,154.83,154.82,0.04555084]
[1749465626605,0.04723678,154.85,154.82,0.04555084]
[1749465627905,6.4548,154.84,154.82,0.04555084]
[1749465629109,6.455,154.83,154.82,0.04555084]
[1749465631209,10.7463,154.84,154.82,0.04555084]
[1749465631407,4.2916,154.84,154.82,0.04555084]
[1749465632008,6.455,154.83,154.82,0.04555084]
[1749465633606,6.4563,154.8,154.76,36.14]
[1749465634205,6.4568,154.79,154.76,36.14]
[1749465634402,7.57410826,154.84,154.76,36.14]
[1749465634403,13.59560951,154.84,154.76,36.14]
[1749465634608,0.04237488,154.82,154.78,0.04502858]
[1749465634810,6.4561,154.81,154.78,0.04502858]
[1749465635213,0.04237488,154.82,154.78,0.04502858]
[1749465635510,3.28250826,154.81,154.78,0.04502858]
[1749465635709,5.56570826,154.81,154.78,0.04502858]
[1749465636603,5.56570826,154.81,154.73,39.42250826]
[1749465636803,5.56570826,154.81,154.73,36.14]
[1749465637004,6.4574,154.78,154.73,42.5987]
[1749465637508,0.04824137,154.77,154.74,0.04834446]
[1749465638099,0.04824137,154.77,154.74,6.50704446]
[1749465638508,0.04824137,154.77,154.74,0.04834446]
[1749465638707,0.04824137,154.77,154.74,6.50684446]
[1749465639109,0.04824137,154.77,154.74,0.04834446]
[1749465639705,0.04824137,154.77,154.75,6.4581]
[1749465639906,0.04824137,154.77,154.75,3.28250826]
[1749465640402,0.04824137,154.77,154.76,6.4579]
[1749465642013,46.8864,154.84,154.79,6.4565]
[1749465642409,10.7464,154.84,154.79,6.4565]
[1749465642611,6.455,154.83,154.79,6.4565]
[1749465642812,6.49705404,154.83,154.79,6.5012495]
[1749465643004,3.3245623,154.83,154.79,0.0447495]
[1749465643710,6.4556,154.82,154.79,0.0447495]
[1749465643917,3.3245623,154.83,154.79,0.0447495]
[1749465644513,6.4554,154.82,154.79,0.0447495]
[1749465645814,6.4555,154.82,154.79,0.0447495]
[1749465646006,3.3245623,154.83,154.79,0.0447495]
[1749465646207,6.4557,154.82,154.79,0.0447495]
[1749465646816,6.4555,154.82,154.79,0.0447495]
[1749465647920,0.04205404,154.83,154.79,0.0447495]
[1749465648714,6.4556,154.82,154.79,0.0447495]
[1749465649018,0.04205404,154.83,154.79,0.0447495]
[1749465649912,6.49715404,154.83,154.79,6.5011495]
[1749465650315,0.04205404,154.83,154.81,6.4556]
[1749465651615,0.04205404,154.83,154.8,3.28250826]
[1749465651814,0.04205404,154.83,154.82,9.73790826]
[1749465655522,0.04205404,154.83,154.82,6.4554]
[1749465655718,0.04205404,154.83,154.82,3.28250826]
[1749465656325,0.04205404,154.83,154.82,9.73790826]
[1749465661129,6.02150125,154.89,154.85,6.4537]
[1749465661327,380.02866833,154.91,154.85,6.4537]
[1749465661328,12.47330125,154.91,154.87,3.28250826]
[1749465661525,6.02150125,154.93,154.87,3.28250826]
[1749465661732,6.02150125,154.93,154.88,6.4529]
[1749465662127,0.04815205,154.92,154.9,6.452]
[1749465662427,0.04815205,154.92,154.89,3.32931548]
[1749465662636,0.04815205,154.92,154.91,3.28250826]
[1749465663838,12.68390125,154.99,154.91,3.28250826]
[1749465664126,12.68390125,154.99,154.94,3.28250826]
[1749465664335,5.15490015,154.98,154.94,3.28250826]
[1749465664528,5.15490015,154.97,154.94,3.28250826]
[1749465664729,5.15490015,154.98,154.94,3.28250826]
[1749465664933,5.15490015,154.97,154.94,0.04099938]
[1749465665334,5.20236298,154.98,154.94,0.04099938]
[1749465665633,6.4492,154.97,154.94,0.04099938]
[1749465665832,11.60410015,154.97,154.94,0.04099938]
[1749465666431,6.4492,154.97,154.94,0.04099938]
[1749465668839,6.4497,154.96,154.94,0.04099938]
[1749465669034,0.04746283,154.98,154.94,0.04099938]
[1749465669234,5.17484167,154.98,154.94,0.04099938]
[1749465669437,6.4492,154.97,154.94,0.04099938]
[1749465669637,0.04746283,154.98,154.94,0.04099938]
[1749465669841,5.1900614,154.98,154.94,0.04099938]
[1749465670645,6.45,154.95,154.94,0.04099938]
[1749465671146,0.04746283,154.98,154.94,0.04099938]
[1749465671343,5.18734496,154.98,154.94,0.04099938]
[1749465672746,3.28250826,154.97,154.89,35.98]
[1749465672944,3.28250826,154.97,154.89,39.26250826]
[1749465673245,6.4503,154.95,154.91,6.4514]
[1749465673445,3.28250826,154.97,154.89,39.26250826]
[1749465673643,0.04770376,154.95,154.91,0.04406928]
[1749465674248,6.4506,154.94,154.91,0.04406928]
[1749465675449,6.49790376,154.95,154.91,6.49566928]
[1749465676150,0.04770376,154.95,154.91,3.32657754]
[1749465676746,0.04770376,154.95,154.93,6.4506]
[1749465680355,0.04770376,154.95,154.91,0.04406928]
[1749465680850,6.4505,154.94,154.91,6.49556928]
[1749465681448,6.49780376,154.95,154.91,6.49556928]
[1749465682956,6.4506,154.94,154.91,0.04406928]
[1749465685351,6.49790376,154.95,154.91,6.49566928]
[1749465685552,0.04770376,154.95,154.91,6.49566928]
[1749465686151,6.4507,154.94,154.91,0.04406928]
[1749465686754,6.4507,154.94,154.91,6.49576928]
[1749465687158,6.451,154.93,154.91,0.04406928]
[1749465687366,0.04770376,154.95,154.91,0.04406928]
[1749465687764,6.4513,154.92,154.91,0.04406928]
[1749465688162,3.28250826,154.92,154.86,35.84]
[1749465688365,6.453,154.88,154.86,35.84]
[1749465688562,6.02150125,154.96,154.91,6.4517]
[1749465688758,5.13772075,154.97,154.91,6.4517]
[1749465688959,6.4503,154.95,154.91,6.4517]
[1749465689158,6.49795073,154.95,154.92,6.4512]
[1749465690366,6.49795073,154.95,154.91,0.04157234]
[1749465690566,6.49795073,154.95,154.91,6.49307234]
[1749465692660,0.04765073,154.95,154.91,0.04157234]
[1749465693267,6.49775073,154.95,154.92,6.451]
[1749465694364,6.4505,154.94,154.91,6.49307234]
[1749465695066,0.04765073,154.95,154.91,0.04157234]
[1749465695269,5.14090131,154.94,154.91,0.04157234]
[1749465695469,5.14090131,154.93,154.91,0.04157234]
[1749465695671,11.59150131,154.94,154.91,0.04157234]
[1749465695962,5.14090131,154.94,154.91,0.04157234]
[1749465696571,5.14090131,154.93,154.91,0.04157234]
[1749465696767,5.14090131,154.94,154.91,0.04157234]
[1749465697068,6.4513,154.92,154.91,0.04157234]
[1749465697269,11.59220131,154.92,154.91,0.04157234]
[1749465697468,6.4513,154.92,154.91,0.04157234]
[1749465697670,5.14090131,154.93,154.91,0.04157234]
[1749465697870,5.14090131,154.94,154.91,0.04157234]
[1749465698168,5.14090131,154.93,154.91,0.04157234]
[1749465698372,5.14090131,154.94,154.91,6.49327234]
[1749465698570,5.14090131,154.93,154.91,0.04157234]
[1749465698771,5.14090131,154.92,154.91,0.04157234]
[1749465698972,6.4509,154.93,154.91,0.04157234]
[1749465699177,5.14090131,154.92,154.91,0.04157234]
[1749465699671,5.14090131,154.93,154.91,0.04157234]
[1749465699871,5.14090131,154.92,154.91,0.04157234]
[1749465700077,5.14090131,154.93,154.91,0.04157234]
[1749465700269,5.15202261,154.92,154.91,0.04157234]
[1749465700467,5.15202261,154.94,154.91,0.04157234]
[1749465700666,5.15202261,154.93,154.91,6.49307234]
[1749465700871,5.15202261,154.92,154.91,6.49307234]
[1749465701073,5.15202261,154.94,154.91,6.49307234]
[1749465701274,5.15202261,154.93,154.91,6.49307234]
[1749465701470,0.04765073,154.95,154.93,6.4506]
[1749465701676,0.04765073,154.95,154.93,3.28250826]
[1749465702474,0.04765073,154.95,154.93,9.73330826]
[1749465703269,5.16271561,154.94,154.93,9.73330826]
[1749465703475,5.16271561,154.94,154.91,39.1640806]
[1749465703674,5.16316559,154.93,154.91,39.1640806]
[1749465703876,0.04765073,154.95,154.91,39.1640806]
[1749465704075,5.16307402,154.94,154.92,6.451]
[1749465704376,5.16723672,154.93,154.92,6.451]
[1749465705772,5.16723672,154.93,154.91,45.6156806]
[1749465705977,6.4506,154.94,154.91,45.6156806]
[1749465706180,5.18066793,154.93,154.91,45.6156806]
[1749465706471,5.18244008,154.92,154.91,39.1640806]
[1749465706679,0.04765073,154.95,154.91,39.1640806]
[1749465706875,5.18234729,154.94,154.91,39.1640806]
[1749465707078,5.18234729,154.93,154.91,45.6153806]
[1749465707275,5.18253172,154.92,154.91,45.6153806]
[1749465707472,5.18253172,154.92,154.91,42.33287234]
[1749465707677,5.18253172,154.92,154.91,0.04157234]
[1749465709680,11.63383172,154.92,154.91,0.04157234]
[1749465712682,5.18253172,154.92,154.91,0.04157234]
[1749465717885,11.63383172,154.92,154.91,0.04157234]
[1749465718289,5.18253172,154.92,154.91,0.04157234]
[1749465719489,11.63383172,154.92,154.91,0.04157234]
[1749465720787,5.18253172,154.92,154.91,0.04157234]
[1749465722087,11.63383172,154.92,154.91,0.04157234]
[1749465722883,5.18253172,154.92,154.91,0.04157234]
[1749465724290,5.18253172,154.92,154.91,3.3240806]
[1749465725194,0.04765073,154.95,154.91,3.3240806]
[1749465725393,5.17252716,154.94,154.92,6.4509]
[1749465725596,5.17252716,154.93,154.92,6.4509]
[1749465728999,5.17252716,154.93,154.91,0.04157234]
[1749465729200,5.17252716,154.92,154.91,0.04157234]
[1749465729401,6.49795073,154.95,154.92,6.4512]
[1749465729594,5.18392503,154.94,154.92,6.4512]
[1749465729793,5.18392503,154.93,154.92,6.4512]
[1749465731599,5.18392503,154.93,154.92,9.73370826]
[1749465732701,0.04765073,154.95,154.93,6.4505]
[1749465732899,5.18488322,154.94,154.93,6.4505]
[1749465735398,5.18488322,154.94,154.93,9.73300826]
[1749465736305,5.18488322,154.94,154.93,3.28250826]
[1749465737199,5.18488322,154.94,154.92,35.7]
[1749465737403,5.18488322,154.93,154.92,35.7]
[1749465737601,5.18488322,154.93,154.91,0.04157234]
[1749465737905,5.18488322,154.92,154.91,0.04157234]
[1749465738710,11.63618322,154.92,154.91,0.04157234]
[1749465742911,5.18488322,154.92,154.91,0.04157234]
[1749465743912,0.04765073,154.95,154.91,0.04157234]
[1749465744106,0.04765073,154.95,154.94,3.28250826]
[1749465744410,0.04765073,154.95,154.94,9.73300826]
[1749465749518,6.02150125,155.0,154.94,3.28250826]
[1749465750109,6.4487,154.99,154.96,6.4495]
[1749465750306,6.49638796,154.99,154.96,6.4495]
[1749465750605,6.49638796,154.99,154.96,6.49028603]
[1749465754113,6.49638796,154.99,154.96,0.04078603]
[1749465754312,6.49638796,154.99,154.97,6.4492]
[1749465754514,0.04768796,154.99,154.96,0.04078603]
[1749465754709,0.04768796,154.99,154.98,6.4488]
[1749465756112,5.20299957,154.99,154.98,6.4488]
[1749465757417,5.20299957,154.99,154.97,3.28250826]
[1749465757619,0.04768796,154.99,154.97,3.28250826]
[1749465758117,0.04768796,154.99,154.97,9.73140826]
[1749465758318,0.04768796,154.99,154.97,3.28250826]
[1749465758616,0.04768796,154.99,154.98,6.4488]
[1749465758818,5.20089321,154.99,154.98,6.4488]
[1749465759117,0.04768796,154.99,154.98,6.4488]
[1749465759315,5.20089321,154.99,154.98,6.4488]
[1749465759517,0.04768796,154.99,154.98,6.4488]
[1749465764117,0.04768796,154.99,154.97,45.27150826]
[1749465764622,0.04768796,154.99,154.98,6.4488]
[1749465764823,0.04768796,154.99,154.97,38.82250826]
[1749465765123,0.04768796,154.99,154.97,41.989]
[1749465765517,5.20984631,154.99,154.97,41.989]
[1749465765718,11.65834631,154.99,154.97,41.989]
[1749465765919,6.49618796,154.99,154.97,41.989]
[1749465766916,0.04768796,154.99,154.97,45.27150826]
[1749465767122,5.20952887,154.99,154.97,45.27150826]
[1749465767319,5.20952887,154.99,154.98,6.4488]
[1749465767621,0.04768796,154.99,154.98,6.4488]
[1749465769520,5.2068482,154.99,154.97,35.54]
[1749465769726,0.04768796,154.99,154.97,35.54]
[1749465770322,5.19693557,154.99,154.97,35.54]
[1749465770525,0.04768796,154.99,154.97,35.54]
[1749465770719,6.49608796,154.99,154.97,35.54]
[1749465773027,0.04768796,154.99,154.97,35.54]
[1749465773426,6.49608796,154.99,154.97,35.54]
[1749465776631,0.04768796,154.99,154.97,41.9892]
[1749465776832,5.19429513,154.99,154.97,41.9892]
[1749465777130,0.04768796,154.99,154.97,35.54]
[1749465777331,0.04768796,154.99,154.97,41.9892]
[1749465779127,6.49618796,154.99,154.97,41.9892]
[1749465780232,6.49618796,154.99,154.97,35.54]
[1749465780739,0.04768796,154.99,154.96,0.04078603]
[1749465781028,5.14923308,154.98,154.96,0.04078603]
[1749465781228,6.4508,154.94,154.91,41.8515]
[1749465782134,6.49890533,154.94,154.91,41.89656917]
[1749465782437,0.04810533,154.94,154.92,6.4512]
[1749465782936,0.04810533,154.94,154.93,6.4509]
[1749465784128,0.04810533,154.94,154.92,9.73370826]
[1749465784532,0.04810533,154.94,154.91,35.44506917]
[1749465784736,11.6517428,154.94,154.91,41.89676917]
[1749465784940,0.04810533,154.94,154.91,35.44506917]
[1749465785240,0.04810533,154.94,154.92,6.4511]
[1749465786638,0.04810533,154.94,154.91,41.89666917]
[1749465786839,0.04810533,154.94,154.91,35.44506917]
[1749465787236,0.04810533,154.94,154.91,0.04506917]
[1749465789741,6.4511,154.93,154.91,0.04506917]
[1749465790243,6.4513,154.92,154.91,0.04506917]
[1749465790636,0.04810533,154.94,154.91,0.04506917]
[1749465790941,6.49900533,154.94,154.91,0.04506917]
[1749465791238,0.04810533,154.94,154.91,3.32757743]
[1749465791434,0.04810533,154.94,154.93,9.73340826]
[1749465793535,35.42,155.01,154.93,9.73340826]
[1749465793536,12.72630125,155.02,154.93,3.28250826]
[1749465793741,12.72630125,155.02,154.97,3.28250826]
[1749465794145,6.4479,155.01,154.97,9.73160826]
[1749465794644,6.49506333,155.01,154.97,9.77346591]
[1749465795339,6.49506333,155.01,154.98,6.4488]
[1749465795540,0.04716333,155.01,154.97,3.32436591]
[1749465795740,0.04716333,155.01,154.98,6.4488]
[1749465795940,0.04716333,155.01,154.97,3.32436591]
[1749465796442,0.04716333,155.01,154.99,3.28250826]
[1749465796840,0.04716333,155.01,154.97,0.04185765]
[1749465797042,0.04716333,155.01,155.0,9.73050826]
[1749465797243,0.04716333,155.01,155.0,45.15050826]
[1749465802647,6.02150125,155.07,155.02,6.4472]
[1749465802846,5.15771503,155.06,155.02,3.28250826]
[1749465803047,5.15771503,155.05,155.02,3.28250826]
[1749465803349,5.15771503,155.07,155.02,9.72940826]
[1749465803545,5.15771503,155.06,155.02,9.72940826]
[1749465803747,6.49352328,155.06,155.03,6.4467]
[1749465804347,6.446,155.05,155.02,9.77710642]
[1749465804743,6.49342328,155.06,155.02,9.77710642]
[1749465804938,6.49342328,155.06,155.03,6.4466]
[1749465807348,0.04772328,155.06,155.04,6.4463]
[1749465808550,6.49322328,155.06,155.03,6.4467]
[1749465808850,0.04772328,155.06,155.02,3.33000642]
[1749465809452,0.04772328,155.06,155.03,6.4464]
[1749465809752,0.04772328,155.06,155.02,3.33000642]
[1749465810150,0.04772328,155.06,155.02,0.04749816]
[1749465810352,5.1971805,155.06,155.02,0.04749816]
[1749465810544,8.43196548,155.05,155.02,0.04749816]
[1749465810749,8.43196548,155.05,154.97,38.54250826]
[1749465810950,5.14945722,155.04,154.97,38.54250826]
[1749465811453,6.4477,155.01,154.98,6.4486]
[1749465811756,6.49605531,155.01,154.98,6.4893227]
[1749465811950,0.04835531,155.01,154.98,0.0407227]
[1749465813054,6.448,155.0,154.98,0.0407227]
[1749465813252,0.04835531,155.01,154.98,0.0407227]
[1749465813446,8.4861427,155.01,154.98,0.0407227]
[1749465814249,6.4484,154.99,154.98,0.0407227]
[1749465815051,0.04835531,155.01,154.98,0.0407227]
[1749465815557,6.49605531,155.01,154.98,0.0407227]
[1749465815960,6.448,155.0,154.98,0.0407227]
[1749465816553,6.4484,154.99,154.98,0.0407227]
[1749465816754,0.04835531,155.01,154.98,0.0407227]
[1749465817460,6.49625531,155.01,154.98,0.0407227]
[1749465818359,6.49625531,155.01,154.98,6.4893227]
[1749465818560,0.04835531,155.01,154.98,0.0407227]
[1749465818861,0.04835531,155.01,154.99,3.28250826]
[1749465819062,0.04835531,155.01,155.0,6.448]
[1749465819464,6.4456,155.06,155.03,6.4465]
[1749465819965,13.1748,155.07,155.04,6.4463]
[1749465820265,6.7296,155.07,155.01,38.54250826]
[1749465820564,6.49044352,155.06,155.02,0.04547935]
[1749465821160,6.49044352,155.06,155.02,6.49227935]
[1749465823463,0.04474352,155.06,155.03,6.4466]
[1749465824663,6.49034352,155.06,155.03,6.4466]
[1749465825166,0.04474352,155.06,155.04,6.4461]
[1749465826168,0.04474352,155.06,155.05,6.4459]
[1749465826460,0.04474352,155.06,155.02,0.04547935]
[1749465826668,0.04474352,155.06,155.02,3.32798761]
[1749465827667,6.49024352,155.06,155.03,6.4467]
[1749465828368,0.04474352,155.06,155.03,6.4467]
[1749465828566,0.04474352,155.06,155.02,3.32798761]
[1749465828765,0.04474352,155.06,155.04,3.28250826]
[1749465828965,5.14648458,155.1,155.04,3.28250826]
[1749465828966,5.14648458,155.1,155.05,35.26]
[1749465829267,5.14648458,155.11,155.08,3.28250826]
[1749465829467,5.14648458,155.11,155.05,38.54250826]
[1749465830067,6.49168124,155.1,155.06,6.48831913]
[1749465830259,0.04758124,155.1,155.06,0.04291913]
[1749465830664,5.15441053,155.09,155.06,0.04291913]
[1749465830867,5.15441053,155.08,155.06,0.04291913]
[1749465831069,6.4451,155.07,155.06,0.04291913]
[1749465831566,5.15441053,155.07,154.82,19.3657]
[1749465831769,3.28250826,155.05,154.97,3.28250826]
[1749465832072,6.4472,155.02,154.98,6.4484]
[1749465832559,0.04866927,155.02,154.98,6.49564321]
[1749465832764,6.4476,155.01,154.98,0.04724321]
[1749465833761,6.49616927,155.02,154.98,0.04724321]
[1749465834372,6.49616927,155.02,154.98,3.32975147]
[1749465834965,8.43362478,155.01,154.98,0.04724321]
[1749465835163,5.15111652,155.0,154.98,0.04724321]
[1749465835765,5.15111652,154.99,154.98,0.04724321]
[1749465836363,11.59951652,154.99,154.98,0.04724321]
[1749465837470,6.4484,154.99,154.98,0.04724321]
[1749465837675,11.59951652,154.99,154.98,0.04724321]
[1749465837871,6.4484,154.99,154.98,0.04724321]
[1749465838174,11.59951652,154.99,154.98,0.04724321]
[1749465838369,6.4484,154.99,154.98,0.04724321]
[1749465838570,11.59951652,154.99,154.98,0.04724321]
[1749465839478,6.4484,154.99,154.98,0.04724321]
[1749465839770,11.59951652,154.99,154.98,0.04724321]
[1749465839967,6.4484,154.99,154.98,0.04724321]
[1749465840168,11.59951652,154.99,154.98,0.04724321]
[1749465840777,6.4484,154.99,154.98,0.04724321]
[1749465841177,11.6167568,154.99,154.98,0.04724321]
[1749465841381,6.4484,154.99,154.98,0.04724321]
[1749465841573,11.6167568,154.99,154.98,0.04724321]
[1749465841979,6.4484,154.99,154.98,0.04724321]
[1749465842280,11.6167568,154.99,154.98,0.04724321]
[1749465842474,11.6164568,155.0,154.98,0.04724321]
[1749465842682,5.1683568,154.99,154.98,0.04724321]
[1749465842882,5.1683568,155.0,154.98,0.04724321]
[1749465843082,5.1683568,154.99,154.98,0.04724321]
[1749465843278,5.1683568,155.0,154.98,0.04724321]
[1749465843482,3.28250826,155.01,154.98,0.04724321]
[1749465843679,5.16699435,155.0,154.98,0.04724321]
[1749465843877,6.4483,155.0,154.98,0.04724321]
[1749465844077,5.16671908,155.0,154.98,0.04724321]
[1749465844282,5.16671908,155.01,154.98,0.04724321]
[1749465844482,5.16671908,155.0,154.98,0.04724321]
[1749465844887,5.16671908,155.01,154.98,0.04724321]
[1749465845083,5.16671908,155.0,154.98,0.04724321]
[1749465845282,5.16671908,155.01,154.98,0.04724321]
[1749465845484,5.16671908,155.0,154.98,0.04724321]
[1749465845787,6.4483,155.0,154.98,0.04724321]
[1749465845990,11.61501908,155.0,154.98,0.04724321]
[1749465846285,6.4483,155.0,154.98,0.04724321]
[1749465846689,11.61130784,155.0,154.98,0.04724321]
[1749465846987,6.4483,155.0,154.98,0.04724321]
[1749465847191,6.4484,154.99,154.98,0.04724321]
[1749465847587,5.16271981,154.99,154.98,0.04724321]
[1749465847786,3.28250826,155.01,154.98,0.04724321]
[1749465847787,11.61091981,155.0,154.98,0.04724321]
[1749465847989,5.16280587,154.99,154.98,0.04724321]
[1749465848190,5.16280587,155.0,154.98,0.04724321]
[1749465848390,11.61120587,154.99,154.98,0.04724321]
[1749465848587,6.4484,154.99,154.98,0.04724321]
[1749465848891,11.61120587,154.99,154.98,0.04724321]
[1749465849987,6.4484,154.99,154.98,0.04724321]
[1749465850196,11.61120587,154.99,154.98,0.04724321]
[1749465850496,6.4484,154.99,154.98,0.04724321]
[1749465850696,11.61120587,154.99,154.98,0.04724321]
[1749465850889,6.4484,154.99,154.98,0.04724321]
[1749465851085,11.61120587,154.99,154.98,0.04724321]
[1749465851289,6.4484,154.99,154.98,0.04724321]
[1749465851495,11.61120587,154.99,154.98,0.04724321]
[1749465851697,6.4484,154.99,154.98,0.04724321]
[1749465851996,5.16280587,154.99,154.98,0.04724321]
[1749465852200,5.16280587,155.0,154.98,0.04724321]
[1749465852390,5.16280587,154.99,154.98,0.04724321]
[1749465852592,5.16280587,155.0,154.98,0.04724321]
[1749465852798,11.61120587,154.99,154.98,0.04724321]
[1749465853494,6.4484,154.99,154.98,0.04724321]
[1749465853699,11.61120587,154.99,154.98,0.04724321]
[1749465854598,5.16280587,154.99,154.98,0.04724321]
[1749465855302,11.61120587,154.99,154.98,0.04724321]
[1749465855500,35.18866927,155.02,154.98,0.04724321]
[1749465855689,5.16284424,155.01,154.98,0.04724321]
[1749465855894,5.16284424,155.0,154.98,0.04724321]
[1749465856195,0.04866927,155.02,154.98,0.04724321]
[1749465856497,5.16278808,155.01,154.98,0.04724321]
[1749465856699,5.16278808,155.0,154.99,6.4484]
[1749465858398,5.16278808,155.0,154.98,0.04724321]
[1749465858597,5.16278808,154.99,154.98,0.04724321]
[1749465858895,6.4484,155.0,154.98,0.04724321]
[1749465859095,5.16278808,154.99,154.98,0.04724321]
[1749465859297,5.16278808,154.99,154.98,6.49604321]
[1749465859501,5.16278808,154.99,154.98,0.04724321]
[1749465860099,11.61118808,154.99,154.98,0.04724321]
[1749465860300,8.44529634,154.99,154.92,35.14]
[1749465860495,5.16278808,154.98,154.92,35.14]
[1749465860699,3.28250826,154.99,154.92,35.14]
[1749465860700,5.16278808,154.97,154.92,35.14]
[1749465860900,5.16278808,154.96,154.95,6.4501]
[1749465861202,5.16278808,154.97,154.95,6.4501]
[1749465861402,5.16278808,154.96,154.95,6.4501]
[1749465861602,5.16278808,154.96,154.94,0.04616109]
[1749465861804,5.16278808,154.95,154.94,0.04616109]
[1749465862202,11.61288808,154.95,154.94,0.04616109]
[1749465862399,6.4501,154.95,154.94,0.04616109]
[1749465862705,11.61288808,154.95,154.94,0.04616109]
[1749465863197,5.16278808,154.95,154.89,35.14]
[1749465863407,5.16278808,154.95,154.86,192.8329774]
[1749465863408,8.44529634,154.94,154.86,192.8329774]
[1749465863593,6.4518,154.91,154.86,192.8329774]
[1749465863797,5.16278808,154.92,154.88,6.4526]
[1749465864094,6.452,154.91,154.88,6.49444936]
[1749465864300,3.32608297,154.92,154.89,6.4523]
[1749465864699,3.32608297,154.92,154.88,0.04184936]
[1749465865004,0.04357471,154.92,154.88,0.04184936]
[1749465865508,0.04357471,154.92,154.9,3.28250826]
[1749465865710,0.04357471,154.92,154.9,38.32250826]
[1749465865908,5.14441419,154.97,154.9,38.32250826]
[1749465866105,5.14441419,154.97,154.9,35.04]
[1749465866406,11.59381419,154.97,154.94,6.4503]
[1749465866606,5.14441419,154.96,154.94,6.4503]
[1749465866904,35.04,154.99,154.94,6.4503]
[1749465867103,0.0443151,154.97,154.93,0.04715217]
[1749465867608,11.63757399,154.97,154.94,6.4502]
[1749465867809,6.4936151,154.97,154.94,6.4502]
[1749465868314,6.4497,154.96,154.93,0.04715217]
[1749465868812,6.4501,154.95,154.93,0.04715217]
[1749465871113,5.14210002,154.96,154.93,6.49775217]
[1749465871513,5.18641512,154.97,154.93,6.49775217]
[1749465871715,5.18641512,154.97,154.93,0.04715217]
[1749465871914,5.18641512,154.97,154.94,6.4505]
[1749465872314,11.63611512,154.97,154.94,6.4505]
[1749465872516,5.18641512,154.97,154.93,0.04715217]
[1749465872814,0.0443151,154.97,154.93,0.04715217]
[1749465873014,11.63581512,154.97,154.94,6.4503]
[1749465873213,5.14210002,154.96,154.93,0.04715217]
[1749465873415,0.0443151,154.97,154.93,0.04715217]
[1749465873613,11.63581512,154.97,154.94,6.4505]
[1749465873808,5.14210002,154.96,154.94,6.4505]
[1749465874211,11.59180002,154.96,154.93,6.49785217]
[1749465874610,5.14210002,154.96,154.93,0.04715217]
[1749465874809,5.14210002,154.96,154.94,6.4505]
[1749465875418,5.14210002,154.96,154.95,6.4501]
[1749465875612,5.14210002,154.96,154.93,3.32966043]
[1749465875816,5.14210002,154.95,154.93,0.04715217]
[1749465876118,11.59260002,154.94,154.93,0.04715217]
[1749465876515,5.14210002,154.94,154.93,0.04715217]
[1749465876723,5.14210002,154.95,154.93,6.49805217]
[1749465877015,5.14210002,154.94,154.93,0.04715217]
[1749465877313,5.14210002,154.95,154.93,0.04715217]
[1749465877513,5.14210002,154.94,154.93,0.04715217]
[1749465877724,6.4505,154.94,154.93,0.04715217]
[1749465877919,11.59260002,154.94,154.93,0.04715217]
[1749465879218,6.4516,154.92,154.86,38.34250826]
[1749465879609,6.4516,154.92,154.88,6.4527]
[1749465880220,6.496978,154.92,154.88,6.49428481]
[1749465881422,6.496978,154.92,154.89,6.4525]
[1749465881617,0.045378,154.92,154.89,6.4525]
[1749465881820,5.19675014,154.92,154.89,6.4525]
[1749465882325,0.045378,154.92,154.89,6.4525]
[1749465882519,0.045378,154.92,154.88,0.04158481]
[1749465882726,0.045378,154.92,154.9,3.28250826]
[1749465883122,0.045378,154.92,154.9,38.34250826]
[1749465883926,0.045378,154.92,154.91,6.4518]
[1749465888926,0.045378,154.92,154.9,41.512]
[1749465889523,0.045378,154.92,154.91,6.4518]
[1749465890221,0.045378,154.92,154.91,9.73430826]
[1749465900129,0.045378,154.92,154.9,41.512]
[1749465900342,0.045378,154.92,154.88,0.04158481]
[1749465900527,11.6138019,154.91,154.88,0.04158481]
[1749465900731,0.045378,154.92,154.88,3.32409307]
[1749465901437,0.045378,154.92,154.9,3.28250826]
[1749465901625,0.045378,154.92,154.9,38.24250826]
[1749465902031,0.045378,154.92,154.9,41.4121]
[1749465902432,0.045378,154.92,154.9,34.96]
[1749465902628,0.045378,154.92,154.91,6.4518]
[1749465903437,0.045378,154.92,154.91,9.73430826]
[1749465905038,0.045378,154.92,154.9,34.96]
[1749465905540,0.045378,154.92,154.9,41.4118]
[1749465906540,0.045378,154.92,154.91,6.4517]
[1749465908936,3.28250826,154.98,154.91,6.4517]
[1749465908937,6.01453023,154.96,154.91,3.28250826]
[1749465909136,222.11077157,155.02,154.95,3.28250826]
[1749465909137,6.01453023,154.99,154.95,3.28250826]
[1749465909440,6.01453023,154.98,154.95,3.28250826]
[1749465909630,6.01453023,154.99,154.97,6.4493]
[1749465909832,6.01453023,155.0,154.97,6.4493]
[1749465910034,6.06052553,155.0,154.97,6.49241731]